bitfinex/quotes_ETHUSD_20220115
["timestamp","ask_amount","ask_price","bid_price","bid_amount"]
[1642237278134,0.00568424,3315.5,3315.3,0.75412]
[1642237278530,0.00511581,3315.4,3315.3,0.75412]
[1642237279582,0.00511581,3315.4,3315.3,5.94471119]
[1642237280983,0.00511581,3315.4,3315.3,3.85412]
[1642237281184,0.00511581,3315.4,3315.3,3.1]
[1642237281389,0.00511581,3315.4,3315.3,3.10534263]
[1642237282285,0.00511581,3315.4,3315.3,5.45534263]
[1642237282485,0.00511581,3315.4,3315.3,7.50148831]
[1642237282736,0.045463,3315.9,3315.4,5.45]
[1642237282930,0.045463,3316.2,3315.5,2.45081722]
[1642237283129,0.045463,3316.2,3315.6,27.69838]
[1642237283334,0.00738951,3316.7,3315.6,27.69838]
[1642237283335,0.00738951,3316.7,3315.6,10.06838]
[1642237283531,0.045463,3316.5,3315.6,10.06838]
[1642237283729,0.045463,3316.5,3315.6,27.69838]
[1642237283931,0.05114724,3316.4,3315.6,27.69838]
[1642237284133,0.00568424,3316.4,3315.7,1.15369949]
[1642237284331,0.045463,3316.5,3316.1,0.7539137]
[1642237284332,0.00511581,3316.3,3316.1,0.7539137]
[1642237284630,0.045463,3316.5,3316.2,7.85514291]
[1642237284830,0.045463,3316.6,3316.2,7.85514291]
[1642237285032,0.00568424,3316.4,3316.3,1.34469526]
[1642237285231,0.00568424,3316.4,3316.3,4.10559727]
[1642237285630,0.00568424,3316.4,3316.3,7.98629727]
[1642237291330,0.00568424,3316.4,3316.3,7.99027229]
[1642237295079,0.00568424,3316.4,3316.3,11.29027229]
[1642237296083,8.424e-05,3316.4,3316.3,13.44027229]
[1642237296285,1.98287,3318.3,3316.3,13.44027229]
[1642237296286,0.045463,3317.6,3316.4,5.45]
[1642237296482,0.045463,3317.4,3317.2,1.5072]
[1642237296683,1.2291,3318.3,3317.3,1.80265146]
[1642237296881,0.045463,3317.8,3317.3,1.80265146]
[1642237297082,0.01023162,3318.2,3317.4,3.65820611]
[1642237297283,0.05569462,3318.2,3317.5,1.83726645]
[1642237297483,0.0096632,3318.1,3317.5,2.59084555]
[1642237297733,0.0096632,3318.1,3317.6,0.75359]
[1642237298032,0.00909477,3318.0,3317.5,1.83726645]
[1642237298233,0.045463,3317.6,3317.5,1.83726645]
[1642237298432,0.00852635,3317.9,3317.5,1.83726645]
[1642237298633,0.05228408,3317.6,3317.4,3.65820611]
[1642237298835,0.045463,3317.5,3317.4,3.65820611]
[1642237299032,0.05171566,3317.5,3317.4,5.40617977]
[1642237299233,0.05171566,3317.5,3317.4,5.39705186]
[1642237299433,0.00625266,3317.5,3317.4,5.41217481]
[1642237299832,0.00625266,3317.5,3317.4,3.65820611]
[1642237300132,0.00625266,3317.5,3317.4,5.39328139]
[1642237300531,0.05171566,3317.5,3317.4,3.65820611]
[1642237301337,0.00625266,3317.5,3317.4,3.66345931]
[1642237301580,0.00625266,3317.5,3317.4,5.41090981]
[1642237301980,0.00625266,3317.5,3317.4,9.30770981]
[1642237303182,0.05171566,3317.5,3317.4,9.30770981]
[1642237303382,0.00625266,3317.5,3317.4,9.30770981]
[1642237307028,0.045463,3318.9,3317.5,5.45]
[1642237307229,2.8787,3319.6,3318.2,0.75343]
[1642237307431,0.00852635,3319.0,3318.4,0.01162552]
[1642237307829,0.00795792,3318.9,3318.4,0.01162552]
[1642237308229,0.0073895,3318.8,3318.4,0.76501552]
[1642237308430,0.045463,3318.7,3318.5,4.47643416]
[1642237308630,0.05228408,3318.7,3318.5,4.47643416]
[1642237308829,0.00625265,3318.6,3318.5,2.68321088]
[1642237309081,0.00625265,3318.6,3318.5,4.49081131]
[1642237309481,0.00625265,3318.6,3318.5,2.68321088]
[1642237310684,0.05171565,3318.6,3318.5,2.68321088]
[1642237311284,0.05171565,3318.6,3318.5,2.68841727]
[1642237312285,0.05171565,3318.6,3318.5,4.54131528]
[1642237312485,0.00625265,3318.6,3318.5,4.54131528]
[1642237313332,0.05171565,3318.6,3318.5,4.54131528]
[1642237313532,0.00625265,3318.6,3318.5,4.54131528]
[1642237313735,0.05171565,3318.6,3318.5,4.54131528]
[1642237313936,0.00625265,3318.6,3318.5,4.54131528]
[1642237314333,0.00625265,3318.6,3318.5,2.68841727]
[1642237314734,0.05171565,3318.6,3318.5,2.68841727]
[1642237315134,0.00625265,3318.6,3318.5,2.68841727]
[1642237316783,0.00625265,3318.6,3318.5,4.51598133]
[1642237320431,0.00625265,3318.6,3318.5,2.68841727]
[1642237321033,0.05171565,3318.6,3318.5,2.68841727]
[1642237327728,2.90171565,3318.6,3318.5,1.35702964]
[1642237328129,0.05171565,3318.6,3318.5,1.35702964]
[1642237328333,0.00625265,3318.6,3318.5,1.35702964]
[1642237328531,0.05171565,3318.6,3318.5,1.35702964]
[1642237329333,0.05171565,3318.6,3318.5,2.45134554]
[1642237333785,2.60171565,3318.6,3318.5,2.45134554]
[1642237334586,2.60171565,3318.6,3318.5,2.33852616]
[1642237334988,2.60171565,3318.6,3318.5,1.24421026]
[1642237336034,0.80539565,3318.6,3318.5,2.44941133]
[1642237336235,0.05171565,3318.6,3318.5,2.44941133]
[1642237339180,0.045463,3318.6,3318.5,2.44941133]
[1642237340181,0.045463,3318.7,3318.5,2.44941133]
[1642237341186,0.00795792,3318.9,3318.5,2.44941133]
[1642237341383,0.05342092,3318.9,3318.5,2.44941133]
[1642237341584,0.0073895,3318.8,3318.5,2.44941133]
[1642237341983,0.00682108,3318.7,3318.5,2.44941133]
[1642237342383,0.00625265,3318.6,3318.5,2.44941133]
[1642237343633,0.05171565,3318.6,3318.5,2.44941133]
[1642237344230,0.00625265,3318.6,3318.5,2.44941133]
[1642237344632,0.00625265,3318.6,3318.5,4.28205059]
[1642237346234,0.00625265,3318.6,3318.5,2.44941133]
[1642237347294,0.05171565,3318.6,3318.5,2.44941133]
[1642237347694,0.00625265,3318.6,3318.5,2.44941133]
[1642237349598,0.00625265,3318.6,3318.5,4.23892553]
[1642237350630,0.00625265,3318.6,3318.5,2.44941133]
[1642237350834,0.05171565,3318.6,3318.5,2.44941133]
[1642237351430,0.00625265,3318.6,3318.5,2.44941133]
[1642237351831,0.05171565,3318.6,3318.5,2.44941133]
[1642237352233,0.00625265,3318.6,3318.5,2.44941133]
[1642237352835,0.05171565,3318.6,3318.5,2.44941133]
[1642237355181,0.00625265,3318.6,3318.5,2.44941133]
[1642237362181,0.05171565,3318.6,3318.5,2.44941133]
[1642237362981,0.00625265,3318.6,3318.5,2.44941133]
[1642237364385,0.05171565,3318.6,3318.5,2.44941133]
[1642237365238,0.00625265,3318.6,3318.5,2.44941133]
[1642237365633,0.00625265,3318.6,3318.5,4.24801864]
[1642237366237,0.00625265,3318.6,3318.5,2.44941133]
[1642237367636,0.05171565,3318.6,3318.5,2.44941133]
[1642237367836,0.00625265,3318.6,3318.5,2.44941133]
[1642237371889,0.00625265,3318.6,3318.5,4.28841703]
[1642237372742,0.045463,3318.8,3318.5,4.28841703]
[1642237373134,0.00682108,3318.7,3318.5,4.28841703]
[1642237373335,0.00682108,3318.7,3318.6,1.78149639]
[1642237373535,0.045463,3318.8,3318.6,1.78149639]
[1642237373735,0.045463,3318.8,3318.5,2.44941133]
[1642237373936,0.045463,3318.8,3318.6,1.75097846]
[1642237374635,0.02109822,3319.1,3318.6,2.50434846]
[1642237375035,0.00852635,3319.0,3318.6,2.50434846]
[1642237375435,0.00795792,3318.9,3318.6,2.50434846]
[1642237375836,0.0073895,3318.8,3318.6,1.75097846]
[1642237376235,0.00682108,3318.7,3318.6,1.75097846]
[1642237377297,0.00682108,3318.7,3318.6,3.90097846]
[1642237378100,0.00682108,3318.7,3318.6,7.20097846]
[1642237378702,0.006,3320.0,3318.6,25.58419846]
[1642237378906,0.006,3320.0,3319.0,0.75317]
[1642237379205,0.545463,3319.6,3319.2,0.7531641]
[1642237379401,0.045463,3319.5,3319.2,0.7531641]
[1642237379609,0.045463,3319.4,3319.2,0.7531641]
[1642237379801,0.00397896,3319.4,3319.3,4.10398904]
[1642237380101,0.00397896,3319.4,3319.3,2.32825205]
[1642237380539,0.04944196,3319.4,3319.3,2.32825205]
[1642237380740,0.00397896,3319.4,3319.3,2.32825205]
[1642237381138,0.04944196,3319.4,3319.3,2.32825205]
[1642237381339,0.04944196,3319.4,3319.3,2.33342443]
[1642237381541,0.00397896,3319.4,3319.3,2.33342443]
[1642237381843,0.04944196,3319.4,3319.3,2.33342443]
[1642237383041,0.00397896,3319.4,3319.3,2.33342443]
[1642237383239,0.04944196,3319.4,3319.3,2.33342443]
[1642237383439,0.00397896,3319.4,3319.3,2.33342443]
[1642237383640,0.04944196,3319.4,3319.3,2.33342443]
[1642237389035,4.89944196,3319.4,3319.3,0.00517238]
[1642237389937,5.65293196,3319.4,3319.3,0.00517238]
[1642237390137,7.15973095,3319.4,3319.3,0.00517238]
[1642237390342,9.41215266,3319.4,3319.3,0.00517238]
[1642237391238,9.41215266,3319.4,3318.8,3.87364719]
[1642237391485,0.045463,3319.0,3318.8,0.00517238]
[1642237391787,4.55027984,3318.9,3318.8,0.00517238]
[1642237392585,0.80027984,3318.9,3318.8,0.00517238]
[1642237394087,3.85027984,3318.9,3318.8,0.00517238]
[1642237394386,6.00627425,3318.9,3318.8,0.00517238]
[1642237394586,6.08273215,3318.9,3318.8,0.00517238]
[1642237394987,8.48273215,3318.9,3318.8,0.00517238]
[1642237395435,8.4837481,3318.9,3317.5,1.1864]
[1642237395636,0.75378,3318.2,3317.9,1.11247319]
[1642237395836,0.045463,3318.1,3317.9,1.11247319]
[1642237396034,0.75378,3318.2,3317.9,1.11247319]
[1642237396234,0.045463,3318.0,3317.9,1.11247319]
[1642237396635,0.75378,3318.2,3317.9,1.11702058]
[1642237396837,0.045463,3318.1,3317.9,1.11702058]
[1642237397035,0.045463,3318.1,3318.0,0.00397897]
[1642237400387,0.75372,3318.4,3318.0,0.00397897]
[1642237400787,2.51108525,3318.9,3318.0,0.00397897]
[1642237400788,0.045463,3318.6,3318.0,0.00397897]
[1642237400986,0.00113684,3318.9,3318.0,0.00397897]
[1642237400987,0.045463,3318.8,3318.0,0.00397897]
[1642237401386,0.00113684,3318.9,3318.0,0.00397897]
[1642237401587,0.045463,3318.7,3318.0,0.00397897]
[1642237401788,0.045463,3318.7,3318.0,1.41503749]
[1642237401987,0.045463,3318.7,3318.0,1.43024]
[1642237402187,0.00113684,3318.9,3318.1,1.20761054]
[1642237402188,0.045463,3318.8,3318.1,1.20761054]
[1642237402388,0.045463,3318.6,3318.2,1.20676565]
[1642237402589,0.045463,3318.5,3318.2,2.63938897]
[1642237402840,0.045463,3318.5,3318.3,0.0022737]
[1642237403040,0.045463,3318.5,3318.4,3.68437957]
[1642237403439,0.045463,3318.5,3318.4,3.68608484]
[1642237404041,0.00113684,3318.9,3318.4,3.68608484]
[1642237404240,0.045463,3318.7,3318.4,3.68608484]
[1642237404441,0.045463,3318.6,3318.5,0.00113685]
[1642237404841,0.045463,3318.6,3318.5,2.65113685]
[1642237405945,0.00113684,3318.9,3318.5,6.93293912]
[1642237406247,0.00113684,3318.9,3318.5,7.80273912]
[1642237407285,0.00113684,3318.9,3318.7,1.24457401]
[1642237407486,0.00113684,3318.9,3318.8,4.35757968]
[1642237408285,0.00113684,3318.9,3318.8,1.95757968]
[1642237408485,0.04659984,3318.9,3318.8,1.95757968]
[1642237409286,0.00113684,3318.9,3318.8,1.95757968]
[1642237409887,0.00113684,3318.9,3318.8,4.10757968]
[1642237410940,0.00113684,3318.9,3318.8,1.95757968]
[1642237411739,0.04659984,3318.9,3318.8,4.40757968]
[1642237411940,0.00113684,3318.9,3318.8,4.40757968]
[1642237413144,0.00113684,3318.9,3318.8,6.98432947]
[1642237417092,0.00113684,3318.9,3318.8,10.48432947]
[1642237420140,0.00113684,3318.9,3318.8,6.98432947]
[1642237421045,0.39659984,3319.6,3318.9,3.3]
[1642237421240,0.39659984,3319.6,3319.0,1.85195398]
[1642237421491,0.00341054,3319.5,3319.0,1.85195398]
[1642237421690,0.00341054,3319.5,3319.0,4.42870377]
[1642237421890,0.00284212,3319.4,3319.1,1.72693697]
[1642237422092,0.00284212,3319.4,3319.1,1.72763713]
[1642237422291,0.0022737,3319.3,3319.1,1.72763713]
[1642237422491,0.0022737,3319.3,3319.2,1.54588466]
[1642237422690,0.31354581,3319.9,3319.2,1.54588466]
[1642237422890,0.31354581,3319.9,3319.6,1.15610494]
[1642237423091,0.00511582,3319.8,3319.6,1.15610494]
[1642237423391,0.00454739,3319.7,3319.2,1.54588466]
[1642237423596,0.75796739,3319.7,3319.2,1.54588466]
[1642237423792,0.00397897,3319.6,3319.2,1.54588466]
[1642237424190,0.00341054,3319.5,3319.2,1.54588466]
[1642237424591,0.00284212,3319.4,3319.2,1.54588466]
[1642237424992,0.0022737,3319.3,3319.2,1.54588466]
[1642237426249,0.0022737,3319.3,3318.9,3.799]
[1642237426442,0.75356,3319.1,3318.9,3.799]
[1642237426642,0.75356,3319.1,3318.7,3.6493]
[1642237426841,0.75356,3319.1,3318.6,1.2148]
[1642237427242,0.75356,3319.1,3318.7,0.00113685]
[1642237427442,0.75356,3319.1,3318.7,1.1976543]
[1642237427644,0.75356,3319.1,3318.7,1.19651745]
[1642237428243,0.00170527,3319.2,3318.7,1.19651745]
[1642237428642,0.00113685,3319.1,3318.7,1.19651745]
[1642237429088,0.0022737,3319.3,3318.7,1.19651745]
[1642237429489,0.00170527,3319.2,3318.7,1.19651745]
[1642237429890,0.00113685,3319.1,3318.7,1.19651745]
[1642237430294,1.46835359,3319.1,3318.6,0.00170527]
[1642237430692,2.22192359,3319.1,3318.6,0.00170527]
[1642237431693,2.22192359,3319.1,3318.7,1.52360552]
[1642237432295,0.4069021,3319.0,3318.7,1.52360552]
[1642237433343,0.4069021,3319.0,3318.6,0.00170527]
[1642237440743,0.4069021,3319.0,3318.4,0.00284211]
[1642237442342,0.40428588,3318.9,3318.5,1.3920615]
[1642237442542,1.22776267,3319.3,3318.5,1.3920615]
[1642237442543,0.40428588,3318.8,3318.5,1.3920615]
[1642237442742,0.40428588,3318.7,3318.6,0.00170527]
[1642237442944,0.40428588,3319.1,3318.6,0.00170527]
[1642237443345,0.40542273,3319.1,3318.6,0.00170527]
[1642237445298,1.15899273,3319.1,3318.6,0.00170527]
[1642237445492,0.39608755,3319.0,3318.6,0.00170527]
[1642237448445,0.00113685,3319.1,3318.6,0.00170527]
[1642237449748,0.00113685,3319.1,3318.6,2.57850269]
[1642237449947,0.00113685,3319.1,3318.7,1.7250035]
[1642237450143,0.00113685,3319.1,3318.7,1.72614034]
[1642237450344,0.00113685,3319.1,3319.0,1.38469746]
[1642237459592,0.00113685,3319.1,3319.0,3.2911055]
[1642237460305,0.00113685,3319.1,3319.0,6.0911055]
[1642237461996,0.00113685,3319.1,3319.0,3.2911055]
[1642237462198,0.00113685,3319.1,3319.0,4.4846055]
[1642237463944,0.00113685,3319.1,3319.0,7.06103685]
[1642237467493,0.137031,3320.5,3319.1,5.45]
[1642237467694,0.023431,3320.5,3319.2,2.34643372]
[1642237467996,0.00568424,3320.1,3319.5,0.045463]
[1642237468391,0.00511581,3320.0,3319.5,0.045463]
[1642237468794,0.00454739,3319.9,3319.5,0.045463]
[1642237469193,0.00397897,3319.8,3319.6,1.23691162]
[1642237469394,0.00397897,3319.8,3319.7,1.15782409]
[1642237469593,1.08682236,3320.4,3319.7,2.95662532]
[1642237469796,0.023431,3320.5,3319.7,2.95662532]
[1642237469993,0.023431,3320.5,3319.7,3.00208832]
[1642237469994,0.00682108,3320.3,3319.7,3.00208832]
[1642237470443,0.00625266,3320.2,3319.8,0.75309]
[1642237470653,0.00625266,3320.2,3319.9,2.00024578]
[1642237470842,0.023431,3320.5,3319.9,2.00024578]
[1642237470843,0.00568424,3320.1,3319.9,2.00024578]
[1642237471245,0.00511581,3320.0,3319.9,2.00024578]
[1642237472044,0.00511581,3320.0,3319.9,5.95024578]
[1642237472445,0.00511581,3320.0,3319.9,5.99570878]
[1642237474097,0.00511581,3320.0,3319.9,8.57151447]
[1642237476297,0.00511581,3320.0,3319.9,8.57859761]
[1642237477950,0.00511581,3320.0,3319.9,6.00279192]
[1642237478346,0.00511581,3320.0,3319.9,4.00254614]
[1642237478750,0.00511581,3320.0,3319.9,5.8695152]
[1642237480751,0.00511581,3320.0,3319.9,4.00254614]
[1642237480952,0.00511581,3320.0,3319.9,5.12291494]
[1642237481795,0.00511581,3320.0,3319.9,4.00254614]
[1642237482693,0.00511581,3320.0,3319.9,5.12292154]
[1642237483895,0.00511581,3320.0,3319.9,4.00254614]
[1642237485354,0.00511581,3320.0,3319.9,0.05254614]
[1642237486358,0.00511581,3320.0,3319.9,0.00708314]
[1642237486954,3.50511581,3320.0,3319.9,0.00708314]
[1642237487154,4.6883954,3320.0,3319.9,0.00708314]
[1642237488357,6.97694817,3320.0,3319.9,0.00708314]
[1642237488557,8.56026607,3320.0,3319.9,0.00708314]
[1642237488759,8.56026607,3320.0,3318.8,0.045463]
[1642237488760,5.45,3319.9,3318.8,0.045463]
[1642237489010,0.75357,3319.4,3318.7,3.6397]
[1642237489396,0.75357,3319.4,3318.7,4.94640917]
[1642237489397,0.00113685,3319.3,3318.7,4.94640917]
[1642237490297,0.00113685,3319.3,3318.8,0.00170527]
[1642237494054,0.00113685,3319.3,3318.8,2.57840895]
[1642237494556,0.00113685,3319.3,3318.9,0.00113685]
[1642237496697,0.00113685,3319.3,3318.9,2.57784053]
[1642237503158,2.22378906,3319.3,3318.9,2.57784053]
[1642237503359,0.75356,3319.1,3318.9,2.57784053]
[1642237504198,0.75356,3319.1,3318.9,0.00113685]
[1642237504399,0.00113685,3319.3,3318.9,0.00113685]
[1642237504603,0.93166671,3319.6,3318.9,0.00113685]
[1642237505001,0.00113684,3319.5,3318.8,0.04830512]
[1642237505201,0.00113684,3319.5,3318.9,0.0022737]
[1642237506804,0.00113684,3319.5,3318.9,2.5790107]
[1642237506805,0.25,3319.0,3318.9,2.5790107]
[1642237507205,0.25,3319.0,3318.9,2.576737]
[1642237507605,0.25,3319.0,3318.9,2.6222]
[1642237508247,0.25,3319.0,3318.9,2.576737]
[1642237509049,0.25,3319.0,3318.7,1.3063269]
[1642237509448,0.25,3319.0,3318.9,3.645463]
[1642237509648,0.25,3319.0,3318.9,3.6]
[1642237509854,0.25,3319.0,3318.9,3.6477367]
[1642237510454,0.25,3319.0,3318.9,5.44762806]
[1642237510650,0.25,3319.0,3318.9,3.6477367]
[1642237510854,0.25,3319.0,3318.9,3.6022737]
[1642237511053,0.25,3319.0,3318.9,3.6477367]
[1642237514102,0.0993964,3319.0,3318.9,3.6477367]
[1642237522949,0.0993964,3319.0,3318.9,6.22412285]
[1642237525652,0.0993964,3319.0,3318.9,2.62412285]
[1642237527199,0.0993964,3319.0,3318.9,0.0477367]
[1642237528399,0.0993964,3319.0,3318.9,3.0977367]
[1642237529004,0.0993964,3319.0,3318.9,5.67426955]
[1642237532055,0.0993964,3319.0,3318.9,2.62426955]
[1642237532856,0.0993964,3319.0,3318.9,2.57880655]
[1642237533457,0.0993964,3319.0,3318.9,2.57653285]
[1642237533658,0.0993964,3319.0,3318.8,0.045463]
[1642237535302,0.0993964,3319.0,3318.8,0.03181207]
[1642237536505,0.0993964,3319.0,3318.8,1.79193033]
[1642237538958,0.0993964,3319.0,3318.8,0.03181207]
[1642237546554,0.75332,3320.1,3318.9,3.1]
[1642237546754,0.75332,3320.1,3319.2,0.045463]
[1642237546955,0.00081582,3319.8,3319.2,0.090926]
[1642237547253,0.75332,3320.1,3319.3,0.0020263]
[1642237547254,0.00195266,3320.0,3319.3,0.0020263]
[1642237547653,0.75332,3320.1,3319.5,1.37138602]
[1642237547654,0.00138424,3319.9,3319.5,1.37138602]
[1642237548053,0.00081582,3319.8,3319.5,1.37138602]
[1642237548456,0.75339,3319.8,3319.3,0.0020263]
[1642237551704,1.30472556,3319.6,3319.3,0.0020263]
[1642237551905,0.75346,3319.5,3319.3,0.0020263]
[1642237554752,1.30472556,3319.6,3319.3,0.0020263]
[1642237557222,0.32567163,3320.0,3319.3,0.0020263]
[1642237557424,0.32567163,3320.0,3319.4,0.045463]
[1642237557623,0.00138424,3319.9,3319.4,0.045463]
[1642237557823,0.00138424,3319.9,3319.5,0.00088946]
[1642237558024,0.00081582,3319.8,3319.5,0.00088946]
[1642237558224,0.00081582,3319.8,3319.5,0.04635246]
[1642237558425,0.00138424,3319.9,3319.5,0.04635246]
[1642237558826,0.32371897,3320.0,3319.5,0.04635246]
[1642237558827,0.00081582,3319.8,3319.5,0.04635246]
[1642237559228,0.00138424,3319.9,3319.5,0.04635246]
[1642237559625,0.00081582,3319.8,3319.5,0.04635246]
[1642237560024,0.00138424,3319.9,3319.5,0.04635246]
[1642237560465,0.00081582,3319.8,3319.5,0.04635246]
[1642237560761,0.00138424,3319.9,3319.5,0.04635246]
[1642237561164,0.00081582,3319.8,3319.5,0.04635246]
[1642237561562,0.00138424,3319.9,3319.5,0.04635246]
[1642237561963,0.00081582,3319.8,3319.5,0.04635246]
[1642237562364,0.00138424,3319.9,3319.5,0.04635246]
[1642237562763,0.00081582,3319.8,3319.5,0.04635246]
[1642237563166,0.00138424,3319.9,3319.5,0.04635246]
[1642237563364,0.00138424,3319.9,3319.7,0.045463]
[1642237563565,1.98614,3320.6,3319.8,4.190926]
[1642237563566,0.75324,3320.6,3319.8,4.190926]
[1642237563765,0.0764579,3321.0,3320.2,0.045463]
[1642237564010,1.1962,3321.2,3320.4,0.045463]
[1642237564210,1.1962,3321.2,3320.5,0.045463]
[1642237564409,1.09729364,3320.8,3320.5,0.045463]
[1642237564605,0.75321,3320.7,3320.4,0.045463]
[1642237564806,0.75914163,3320.7,3320.3,0.045463]
[1642237565005,0.0053632,3320.6,3320.2,0.045463]
[1642237565205,0.0053632,3320.6,3320.1,1.3034378]
[1642237565406,0.00479478,3320.5,3320.1,1.3034378]
[1642237565805,0.00422636,3320.4,3320.1,1.3034378]
[1642237566207,0.00365793,3320.3,3320.1,1.3034378]
[1642237566608,1.09729364,3320.8,3320.2,2.390926]
[1642237566807,0.75314,3321.0,3320.4,0.045463]
[1642237567012,0.0053632,3320.6,3320.5,0.045463]
[1642237567209,0.0053632,3320.6,3320.4,0.045463]
[1642237567610,0.00479478,3320.5,3320.4,0.045463]
[1642237567859,0.00479478,3320.5,3320.3,0.045463]
[1642237568258,0.00422636,3320.4,3320.3,0.045463]
[1642237568458,0.00422636,3320.4,3320.2,2.3]
[1642237568660,0.00422636,3320.4,3320.3,0.045463]
[1642237568860,0.00365793,3320.3,3320.2,5.6191916]
[1642237569060,0.00422636,3320.4,3320.2,5.6191916]
[1642237569259,1.35684907,3321.2,3320.3,5.65346419]
[1642237569459,1.35684907,3321.2,3320.7,1.30350694]
[1642237569664,0.37092905,3321.3,3320.7,1.34896994]
[1642237569665,0.00820532,3321.1,3320.7,1.34896994]
[1642237569859,0.00820532,3321.1,3320.8,0.045463]
[1642237570059,0.37092905,3321.3,3320.8,0.045463]
[1642237570060,0.0076369,3321.0,3320.8,0.045463]
[1642237570261,0.0076369,3321.0,3320.7,0.045463]
[1642237570460,0.00706847,3320.9,3320.6,0.045463]
[1642237570662,0.00706847,3320.9,3320.7,0.045463]
[1642237570861,0.00650005,3320.8,3320.6,0.045463]
[1642237571160,0.00593163,3320.7,3320.6,0.045463]
[1642237571359,0.00593163,3320.7,3320.4,4.9238]
[1642237571607,0.00593163,3320.7,3320.5,0.045463]
[1642237571808,0.0053632,3320.6,3320.5,0.045463]
[1642237572211,0.0053632,3320.6,3320.4,0.045463]
[1642237572609,0.00479478,3320.5,3320.4,0.045463]
[1642237573509,0.00479478,3320.5,3320.4,0.090926]
[1642237573908,0.00479478,3320.5,3320.4,3.190926]
[1642237579109,0.00479478,3320.5,3320.4,0.090926]
[1642237579512,0.00479478,3320.5,3320.4,0.045463]
[1642237579707,0.00479478,3320.5,3320.2,5.0852]
[1642237579708,0.00479478,3320.5,3320.3,0.045463]
[1642237579912,0.00479478,3320.5,3320.2,5.130663]
[1642237580110,0.00422636,3320.4,3320.2,5.130663]
[1642237580509,0.00365793,3320.3,3320.2,5.130663]
[1642237580710,1.17427772,3320.3,3320.2,5.130663]
[1642237580911,1.17427772,3320.3,3320.2,0.045463]
[1642237581108,1.17427772,3320.3,3319.5,3.81338946]
[1642237581109,1.17427772,3320.3,3320.1,0.045463]
[1642237581309,1.17427772,3320.3,3319.9,0.045463]
[1642237581509,0.00308951,3320.2,3320.0,0.045463]
[1642237581909,1.17061979,3320.3,3319.9,0.045463]
[1642237581910,0.00252109,3320.1,3319.9,0.045463]
[1642237582309,0.00195266,3320.0,3319.9,0.045463]
[1642237584160,0.00195266,3320.0,3319.9,0.090926]
[1642237586520,0.00195266,3320.0,3319.6,2.91573374]
[1642237586908,0.00138424,3319.9,3319.6,2.91573374]
[1642237587308,0.00081582,3319.8,3319.6,2.91573374]
[1642237587509,0.00081582,3319.8,3319.7,1.75329426]
[1642237587712,0.00308951,3320.2,3319.7,1.75329426]
[1642237587908,0.00081582,3319.8,3319.7,1.75329426]
[1642237588108,0.00252109,3320.1,3319.7,1.75329426]
[1642237588308,1.17061979,3320.3,3319.6,1.2014]
[1642237588309,0.00081582,3319.8,3319.6,1.2014]
[1642237588510,0.00195266,3320.0,3319.6,2.94876232]
[1642237588709,0.00308951,3320.2,3319.6,2.94876232]
[1642237588913,0.00138424,3319.9,3319.6,2.94876232]
[1642237589113,0.00252109,3320.1,3319.6,2.94876232]
[1642237589309,0.00081582,3319.8,3319.6,2.94876232]
[1642237589510,0.00195266,3320.0,3319.6,1.2014]
[1642237589711,0.00308951,3320.2,3319.6,1.2014]
[1642237589910,0.00138424,3319.9,3319.6,1.2014]
[1642237590111,0.00252109,3320.1,3319.6,1.2014]
[1642237590366,0.00081582,3319.8,3319.6,1.2014]
[1642237590659,0.00308951,3320.2,3319.7,1.78095475]
[1642237591059,0.00252109,3320.1,3319.7,1.78095475]
[1642237591460,0.00195266,3320.0,3319.7,1.78095475]
[1642237591759,0.00138424,3319.9,3319.6,1.2014]
[1642237592263,0.00081582,3319.8,3319.6,1.2014]
[1642237592463,0.00081582,3319.8,3319.6,2.92783818]
[1642237592666,0.00308951,3320.2,3319.7,1.71084422]
[1642237593161,0.00252109,3320.1,3319.7,1.71084422]
[1642237593363,0.00252109,3320.1,3319.6,1.2014]
[1642237593562,1.17061979,3320.3,3319.6,2.92683307]
[1642237593563,0.00195266,3320.0,3319.6,2.92683307]
[1642237593762,0.00195266,3320.0,3319.6,1.2014]
[1642237594017,0.00138424,3319.9,3319.6,1.2014]
[1642237594412,0.00081582,3319.8,3319.6,1.2014]
[1642237594914,0.00308951,3320.2,3319.6,1.2014]
[1642237595311,0.00252109,3320.1,3319.6,1.2014]
[1642237595711,0.00195266,3320.0,3319.6,2.92978224]
[1642237596113,0.00138424,3319.9,3319.6,2.92978224]
[1642237596514,0.00081582,3319.8,3319.6,2.92978224]
[1642237596715,0.00081582,3319.8,3319.7,4.33002805]
[1642237596919,0.00308951,3320.2,3319.7,4.33002805]
[1642237597120,0.00081582,3319.8,3319.7,4.33002805]
[1642237597317,0.00252109,3320.1,3319.7,4.33002805]
[1642237597516,0.34,3320.4,3319.7,4.33002805]
[1642237597517,0.00081582,3319.8,3319.7,4.33002805]
[1642237597754,0.00195266,3320.0,3319.7,4.33002805]
[1642237597955,0.00081582,3319.8,3319.7,4.33002805]
[1642237598163,0.00138424,3319.9,3319.7,4.33002805]
[1642237598456,1.23013722,3320.3,3319.8,1.82800642]
[1642237598657,0.34,3320.4,3319.8,1.82800642]
[1642237598857,0.00308951,3320.2,3319.8,1.82800642]
[1642237599159,0.00252109,3320.1,3319.8,1.82800642]
[1642237599557,0.00195266,3320.0,3319.8,1.82800642]
[1642237599957,0.00138424,3319.9,3319.8,1.82800642]
[1642237602714,0.00138424,3319.9,3319.8,5.22800642]
[1642237604715,0.00138424,3319.9,3319.8,6.51963798]
[1642237605559,0.00138424,3319.9,3319.8,9.09541672]
[1642237606361,0.00138424,3319.9,3319.8,6.51963798]
[1642237609214,0.00138424,3319.9,3319.8,9.09523357]
[1642237610215,0.00138424,3319.9,3319.8,4.40360201]
[1642237610814,0.00138424,3319.9,3319.8,1.82800642]
[1642237611414,0.00138424,3319.9,3319.8,1.31503531]
[1642237611613,0.00138424,3319.9,3319.8,5.31503531]
[1642237611815,0.00138424,3319.9,3319.8,7.89067859]
[1642237618510,0.00138424,3319.9,3319.8,7.59067859]
[1642237619510,0.00138424,3319.9,3319.8,3.59067859]
[1642237621463,0.00138424,3319.9,3319.8,5.81809859]
[1642237624610,0.00138424,3319.9,3319.8,3.46809859]
[1642237625411,0.00138424,3319.9,3319.8,2.57564328]
[1642237627209,0.00138424,3319.9,3319.7,2.57564328]
[1642237627610,0.00081582,3319.8,3319.7,2.57564328]
[1642237629361,0.00081582,3319.8,3319.7,5.37564328]
[1642237636563,0.34,3320.4,3319.8,5.4]
[1642237636765,0.34,3320.4,3319.8,6.15304]
[1642237636962,0.00170527,3320.1,3319.8,6.15304]
[1642237637367,0.34,3320.4,3319.8,6.15304]
[1642237637368,0.00113684,3320.0,3319.8,6.15304]
[1642237637563,0.00113684,3320.0,3319.8,23.78304]
[1642237637763,0.00284211,3320.3,3319.8,23.78304]